fUST/lending_fUST_20260417
["ID","MTS","AMOUNT","RATE_DAILY","PERIOD"]
[420641327,1776401446785,-500.0,8.219e-05,2]
[420641329,1776401446794,-500.0,8.219e-05,2]
[420641330,1776401446803,-500.0,8.219e-05,2]
[420641331,1776401446812,-500.0,8.219e-05,2]
[420641332,1776401446822,-500.0,8.219e-05,2]
[420641333,1776401446831,-500.0,8.219e-05,2]
[420641334,1776401446840,-500.0,8.219e-05,2]
[420641335,1776401446850,-382.11696856,8.219e-05,2]
[420641336,1776401446859,-500.0,8.219e-05,2]
[420641337,1776401446868,-500.0,8.219e-05,2]
[420641338,1776401446877,-237.4139689,8.219e-05,2]
[420641339,1776401446887,-500.0,8.219e-05,2]
[420641340,1776401446896,-500.0,8.219e-05,2]
[420641341,1776401446906,-500.0,8.219e-05,2]
[420641342,1776401446915,-500.0,8.219e-05,2]
[420641343,1776401446924,-500.0,8.219e-05,2]
[420641344,1776401446934,-500.0,8.219e-05,2]
[420641345,1776401446943,-500.0,8.219e-05,2]
[420641346,1776401446953,-500.0,8.219e-05,2]
[420641347,1776401446963,-500.0,8.219e-05,2]
[420641348,1776401446972,-500.0,8.219e-05,2]
[420641349,1776401446982,-500.0,8.219e-05,2]
[420641350,1776401446992,-500.0,8.219e-05,2]
[420641351,1776401447001,-500.0,8.219e-05,2]
[420641352,1776401447011,-500.0,8.219e-05,2]
[420641353,1776401447020,-500.0,8.219e-05,2]
[420641354,1776401447030,-500.0,8.219e-05,2]
[420641355,1776401447039,-505.50710779,8.219e-05,2]
[420641356,1776401447049,-536.75,8.219e-05,2]
[420641357,1776401447058,-500.0,8.219e-05,2]
[420641358,1776401447067,-500.0,8.219e-05,2]
[420641359,1776401447077,-500.0,8.219e-05,2]
[420641360,1776401447086,-500.0,8.219e-05,2]
[420641361,1776401447095,-500.0,8.219e-05,2]
[420641362,1776401447105,-390.50038624,8.219e-05,2]
[420641363,1776401447113,-500.0,8.219e-05,2]
[420641364,1776401447122,-500.0,8.219e-05,2]
[420641365,1776401447132,-500.0,8.219e-05,2]
[420641366,1776401447142,-500.0,8.219e-05,2]
[420641367,1776401447151,-500.0,8.219e-05,2]
[420641368,1776401447160,-500.0,8.219e-05,2]
[420641369,1776401447169,-500.0,8.219e-05,2]
[420641370,1776401447179,-500.0,8.219e-05,2]
[420641371,1776401447188,-500.0,8.219e-05,2]
[420641372,1776401447197,-500.0,8.219e-05,2]
[420641373,1776401447207,-500.0,8.219e-05,2]
[420641374,1776401447216,-500.0,8.219e-05,2]
[420641375,1776401447225,-500.0,8.219e-05,2]
[420641376,1776401447234,-500.0,8.219e-05,2]
[420641377,1776401447244,-151.0,8.219e-05,2]
[420641378,1776401447253,-151.0,8.219e-05,2]
[420641379,1776401447263,-500.0,8.219e-05,2]
[420641380,1776401447272,-500.0,8.219e-05,2]
[420641381,1776401447282,-500.0,8.219e-05,2]
[420641382,1776401447291,-500.0,8.219e-05,2]
[420641383,1776401447301,-500.0,8.219e-05,2]
[420641384,1776401447315,-352.5270221,8.219e-05,2]
[420641385,1776401447324,-225.35,8.219e-05,2]
[420641386,1776401447334,-500.0,8.219e-05,2]
[420641387,1776401447343,-500.0,8.219e-05,2]
[420641388,1776401447352,-500.0,8.219e-05,2]
[420641389,1776401447362,-714.74,8.219e-05,2]
[420641390,1776401447371,-500.0,8.219e-05,2]
[420641391,1776401447380,-500.0,8.219e-05,2]
[420641392,1776401447389,-500.0,8.219e-05,2]
[420641393,1776401447399,-500.0,8.219e-05,2]
[420641394,1776401447409,-600.397039,8.219e-05,2]
[420641395,1776401447419,-500.0,8.219e-05,2]
[420641396,1776401447429,-500.0,8.219e-05,2]
[420641397,1776401447438,-500.0,8.219e-05,2]
[420641398,1776401447448,-500.0,8.219e-05,2]
[420641399,1776401447458,-500.0,8.219e-05,2]
[420641400,1776401447467,-500.0,8.219e-05,2]
[420641401,1776401447476,-500.0,8.219e-05,2]
[420641402,1776401447485,-500.0,8.219e-05,2]
[420641403,1776401447494,-500.0,8.219e-05,2]
[420641404,1776401447503,-500.0,8.219e-05,2]
[420641405,1776401447513,-457.04106456,8.219e-05,2]
[420641406,1776401447522,-500.0,8.219e-05,2]
[420641407,1776401447532,-504.78873516,8.219e-05,2]
[420641408,1776401447541,-500.0,8.219e-05,2]
[420641409,1776401447551,-500.0,8.219e-05,2]
[420641410,1776401447561,-500.0,8.219e-05,2]
[420641411,1776401447570,-348.62791574,8.219e-05,2]
[420641412,1776401447580,-500.07399451,8.219e-05,2]
[420641413,1776401447589,-500.0,8.219e-05,2]
[420641414,1776401447598,-500.0,8.219e-05,2]
[420641415,1776401447608,-500.0,8.219e-05,2]
[420641416,1776401447618,-514.06,8.219e-05,2]
[420641417,1776401447627,-500.0,8.219e-05,2]
[420641418,1776401447637,-500.0,8.219e-05,2]
[420641419,1776401447646,-500.0,8.219e-05,2]
[420641420,1776401447655,-500.0,8.219e-05,2]
[420641421,1776401447665,-513.07547511,8.219e-05,2]
[420641422,1776401447675,-500.0,8.219e-05,2]
[420641423,1776401447684,-500.0,8.219e-05,2]
[420641424,1776401447694,-500.0,8.219e-05,2]
[420641425,1776401447703,-500.0,8.219e-05,2]
[420641426,1776401447713,-500.0,8.219e-05,2]
[420641427,1776401447723,-585.64362376,8.219e-05,2]
[420641428,1776401447732,-500.0,8.219e-05,2]
[420641429,1776401447741,-506.09746386,8.219e-05,2]
[420641430,1776401447750,-500.0,8.219e-05,2]
[420641431,1776401447760,-500.0,8.219e-05,2]
[420641432,1776401447770,-500.0,8.219e-05,2]
[420641433,1776401447779,-790.56,8.219e-05,2]
[420641434,1776401447789,-500.0,8.219e-05,2]
[420641435,1776401447798,-500.0,8.219e-05,2]
[420641436,1776401447808,-500.0,8.219e-05,2]
[420641437,1776401447818,-1577.48,8.219e-05,2]
[420641438,1776401447828,-500.0,8.219e-05,2]
[420641439,1776401447837,-500.0,8.219e-05,2]
[420641440,1776401447847,-500.0,8.219e-05,2]
[420641441,1776401447856,-500.0,8.219e-05,2]
[420641442,1776401447866,-500.0,8.219e-05,2]
[420641443,1776401447875,-500.0,8.219e-05,2]
[420641444,1776401447885,-500.0,8.219e-05,2]
[420641445,1776401447894,-500.0,8.219e-05,2]
[420641446,1776401447904,-500.0,8.219e-05,2]
[420641447,1776401447913,-500.0,8.219e-05,2]
[420641448,1776401447923,-500.0,8.219e-05,2]
[420641449,1776401447933,-500.0,8.219e-05,2]
[420641450,1776401447943,-188.08535562,8.219e-05,2]
[420641451,1776401447953,-500.0,8.219e-05,2]
[420641452,1776401447963,-981.48,8.219e-05,2]
[420641453,1776401447977,-500.0,8.219e-05,2]
[420641454,1776401447987,-500.0,8.219e-05,2]
[420641455,1776401447996,-500.0,8.219e-05,2]
[420641456,1776401448006,-524.88,8.219e-05,2]
[420641457,1776401448015,-500.0,8.219e-05,2]
[420641458,1776401448025,-500.0,8.219e-05,2]
[420641459,1776401448034,-500.0,8.219e-05,2]
[420641460,1776401448044,-500.0,8.219e-05,2]
[420641461,1776401448054,-500.0,8.219e-05,2]
[420641462,1776401448063,-500.0,8.219e-05,2]
[420641463,1776401448072,-500.0,8.219e-05,2]
[420641464,1776401448081,-500.0,8.219e-05,2]
[420641465,1776401448091,-624.04,8.219e-05,2]
[420641466,1776401448100,-500.0,8.219e-05,2]
[420641467,1776401448113,-500.0,8.219e-05,2]
[420641468,1776401448122,-1139.79,8.219e-05,2]
[420641469,1776401448132,-500.0,8.219e-05,2]
[420641470,1776401448141,-500.0,8.219e-05,2]
[420641471,1776401448151,-500.0,8.219e-05,2]
[420641472,1776401448160,-500.0,8.219e-05,2]
[420641473,1776401448169,-500.0,8.219e-05,2]
[420641474,1776401448179,-500.0,8.219e-05,2]
[420641475,1776401448188,-500.0,8.219e-05,2]
[420641476,1776401448197,-500.0,8.219e-05,2]
[420641477,1776401448206,-502.64534002,8.219e-05,2]
[420641478,1776401448216,-1408.35,8.219e-05,2]
[420641479,1776401448225,-500.0,8.219e-05,2]
[420641480,1776401448234,-500.0,8.219e-05,2]
[420641481,1776401448244,-500.0,8.219e-05,2]
[420641482,1776401448254,-500.0,8.219e-05,2]
[420641483,1776401448263,-500.0,8.219e-05,2]
[420641484,1776401448273,-500.0,8.219e-05,2]
[420641485,1776401448282,-500.0,8.219e-05,2]
[420641486,1776401448292,-500.0,8.219e-05,2]
[420641487,1776401448301,-500.0,8.219e-05,2]
[420641488,1776401448311,-500.0,8.219e-05,2]
[420641489,1776401448321,-500.0,8.219e-05,2]
[420641490,1776401448331,-500.0,8.219e-05,2]
[420641491,1776401448341,-500.0,8.219e-05,2]
[420641492,1776401448350,-500.0,8.219e-05,2]
[420641493,1776401448359,-500.0,8.219e-05,2]
[420641494,1776401448371,-500.0,8.219e-05,2]
[420641495,1776401448380,-2125.39,8.219e-05,2]
[420641496,1776401448389,-500.0,8.219e-05,2]
[420641497,1776401448399,-2446.73,8.219e-05,2]
[420641498,1776401448408,-794.09,8.219e-05,2]
[420641499,1776401448418,-500.0,8.219e-05,2]
[420641500,1776401448427,-1373.22,8.219e-05,2]
[420641501,1776401448436,-500.0,8.219e-05,2]
[420641502,1776401448445,-447.38952975,8.219e-05,2]
[420641503,1776401448456,-500.0,8.219e-05,2]
[420641504,1776401448466,-644.82,8.219e-05,2]
[420641505,1776401448476,-500.0,8.219e-05,2]
[420641506,1776401448486,-2132.91,8.219e-05,2]
[420641507,1776401448496,-1234.04,8.219e-05,2]
[420641508,1776401448506,-500.0,8.219e-05,2]
[420641509,1776401448515,-500.0,8.219e-05,2]
[420641510,1776401448525,-500.0,8.219e-05,2]
[420641511,1776401448538,-500.0,8.219e-05,2]
[420641512,1776401448547,-500.0,8.219e-05,2]
[420641513,1776401448556,-500.0,8.219e-05,2]
[420641514,1776401448566,-500.0,8.219e-05,2]
[420641515,1776401448575,-500.0,8.219e-05,2]
[420641516,1776401448584,-502.60196686,8.219e-05,2]
[420641517,1776401448594,-500.0,8.219e-05,2]
[420641518,1776401448603,-500.0,8.219e-05,2]
[420641519,1776401448612,-500.0,8.219e-05,2]
[420641520,1776401448622,-500.0,8.219e-05,2]
[420641521,1776401448632,-500.0,8.219e-05,2]
[420641522,1776401448642,-500.0,8.219e-05,2]
[420641523,1776401448651,-500.0,8.219e-05,2]
[420641524,1776401448661,-500.0,8.219e-05,2]
[420641525,1776401448670,-500.0,8.219e-05,2]
[420641526,1776401448679,-500.0,8.219e-05,2]
[420641527,1776401448689,-500.0,8.219e-05,2]
[420641528,1776401448698,-409.19199799,8.219e-05,2]
[420641529,1776401448708,-500.0,8.219e-05,2]
[420641530,1776401448718,-500.0,8.219e-05,2]
[420641531,1776401448727,-500.0,8.219e-05,2]
[420641532,1776401448740,-500.0,8.219e-05,2]
[420641533,1776401448749,-500.0,8.219e-05,2]
[420641534,1776401448759,-500.0,8.219e-05,2]
[420641535,1776401448768,-500.0,8.219e-05,2]
[420641536,1776401448778,-179.66729622,8.219e-05,2]
[420641537,1776401448788,-500.0,8.219e-05,2]
[420641538,1776401448797,-654.49,8.219e-05,2]
[420641539,1776401448808,-500.0,8.219e-05,2]
[420641540,1776401448817,-500.0,8.219e-05,2]
[420641541,1776401448827,-500.0,8.219e-05,2]
[420641542,1776401448837,-500.0,8.219e-05,2]
[420641543,1776401448846,-528.5,8.219e-05,2]
[420641544,1776401448856,-500.0,8.219e-05,2]
[420641545,1776401449032,-500.0,8.219e-05,2]
[420641546,1776401449042,-500.0,8.219e-05,2]
[420641547,1776401449052,-500.0,8.219e-05,2]
[420641548,1776401449062,-500.0,8.219e-05,2]
[420641549,1776401449071,-500.0,8.219e-05,2]
[420641550,1776401449081,-500.0,8.219e-05,2]
[420641551,1776401449090,-500.0,8.219e-05,2]
[420641552,1776401449100,-500.0,8.219e-05,2]
[420641553,1776401449109,-500.0,8.219e-05,2]
[420641554,1776401449119,-500.0,8.219e-05,2]
[420641555,1776401449128,-500.0,8.219e-05,2]
[420641556,1776401449138,-500.52530009,8.219e-05,2]
[420641557,1776401449148,-500.0,8.219e-05,2]
[420641558,1776401449158,-500.0,8.219e-05,2]
[420641559,1776401449168,-586.54,8.219e-05,2]
[420641560,1776401449177,-500.0,8.219e-05,2]
[420641561,1776401449187,-500.0,8.219e-05,2]
[420641562,1776401449197,-500.0,8.219e-05,2]
[420641563,1776401449206,-500.0,8.219e-05,2]
[420641564,1776401449216,-1060.43,8.219e-05,2]
[420641565,1776401449226,-500.0,8.219e-05,2]
[420641566,1776401449235,-500.0,8.219e-05,2]
[420641567,1776401449245,-500.0,8.219e-05,2]
[420641568,1776401449255,-500.0,8.219e-05,2]
[420641569,1776401449264,-540.58867667,8.219e-05,2]
[420641570,1776401449273,-500.0,8.219e-05,2]
[420641571,1776401449283,-500.0,8.219e-05,2]
[420641572,1776401449292,-500.0,8.219e-05,2]
[420641573,1776401449302,-506.08391988,8.219e-05,2]
[420641574,1776401449311,-500.0,8.219e-05,2]
[420641575,1776401449321,-500.0,8.219e-05,2]
[420641576,1776401449330,-500.0,8.219e-05,2]
[420641577,1776401449340,-500.0,8.219e-05,2]
[420641578,1776401449349,-500.0,8.219e-05,2]
[420641579,1776401449358,-1117.87,8.219e-05,2]
[420641580,1776401449367,-500.0,8.219e-05,2]
[420641581,1776401449377,-500.0,8.219e-05,2]
[420641582,1776401449386,-500.0,8.219e-05,2]
[420641583,1776401449396,-500.57459101,8.219e-05,2]
[420641584,1776401449405,-500.0,8.219e-05,2]
[420641585,1776401449415,-512.80130548,8.219e-05,2]
[420641586,1776401449424,-500.0,8.219e-05,2]
[420641587,1776401449433,-1972.65,8.219e-05,2]
[420641588,1776401449443,-500.52080458,8.219e-05,2]
[420641589,1776401449453,-500.0,8.219e-05,2]
[420641590,1776401449462,-500.0,8.219e-05,2]
[420641591,1776401449471,-500.0,8.219e-05,2]
[420641592,1776401449481,-500.0,8.219e-05,2]
[420641593,1776401449491,-500.0,8.219e-05,2]
[420641594,1776401449500,-548.71,8.219e-05,2]
[420641595,1776401449509,-500.0,8.219e-05,2]
[420641596,1776401449518,-500.0,8.219e-05,2]
[420641597,1776401449528,-510.96745338,8.219e-05,2]
[420641598,1776401449537,-500.0,8.219e-05,2]
[420641599,1776401449547,-498.53211824,8.219e-05,2]
[420641600,1776401449556,-500.0,8.219e-05,2]
[420641601,1776401449566,-500.0,8.219e-05,2]
[420641602,1776401449575,-500.0,8.219e-05,2]
[420641603,1776401449584,-500.0,8.219e-05,2]
[420641604,1776401449594,-501.1629064,8.219e-05,2]
[420641605,1776401449603,-525.55074517,8.219e-05,2]
[420641606,1776401449613,-658.51,8.219e-05,2]
[420641607,1776401449623,-500.0,8.219e-05,2]
[420641608,1776401449632,-500.0,8.219e-05,2]
[420641609,1776401449642,-500.0,8.219e-05,2]
[420641610,1776401449652,-609.6189972,8.219e-05,2]
[420641611,1776401449661,-500.0,8.219e-05,2]
[420641612,1776401449671,-500.0,8.219e-05,2]
[420641613,1776401449680,-500.0,8.219e-05,2]
[420641614,1776401449690,-500.0,8.219e-05,2]
[420641615,1776401449699,-500.0,8.219e-05,2]
[420641616,1776401449708,-500.0,8.219e-05,2]
[420641617,1776401449718,-500.0,8.219e-05,2]
[420641618,1776401449727,-507.52621907,8.219e-05,2]
[420641619,1776401449737,-500.0,8.219e-05,2]
[420641620,1776401449747,-500.0,8.219e-05,2]
[420641621,1776401449757,-500.0,8.219e-05,2]
[420641622,1776401449766,-500.0,8.219e-05,2]
[420641623,1776401449776,-636.9,8.219e-05,2]
[420641624,1776401449786,-576.05,8.219e-05,2]
[420641625,1776401449795,-500.0,8.219e-05,2]
[420641626,1776401449804,-500.0,8.219e-05,2]
[420641627,1776401449813,-501.01507569,8.219e-05,2]
[420641628,1776401449823,-500.0,8.219e-05,2]
[420641629,1776401449833,-506.30279686,8.219e-05,2]
[420641630,1776401449842,-500.0,8.219e-05,2]
[420641631,1776401449851,-500.0,8.219e-05,2]
[420641632,1776401449861,-242.79434792,8.219e-05,2]
[420641633,1776401449870,-1685.96,8.219e-05,2]
[420641634,1776401449879,-500.0,8.219e-05,2]
[420641635,1776401449889,-641.07581041,8.219e-05,2]
[420641636,1776401449898,-3047.26,8.219e-05,2]
[420641637,1776401449907,-500.0,8.219e-05,2]
[420641638,1776401449917,-500.0,8.219e-05,2]
[420641639,1776401449926,-500.0,8.219e-05,2]
[420641640,1776401449935,-500.0,8.219e-05,2]
[420641641,1776401449945,-320.19661777,8.219e-05,2]
[420641642,1776401449955,-500.0,8.219e-05,2]
[420641643,1776401449964,-500.0,8.219e-05,2]
[420641644,1776401449974,-500.0,8.219e-05,2]
[420641645,1776401449984,-2907.74,8.219e-05,2]
[420641646,1776401449994,-3441.2,8.219e-05,2]
[420641647,1776401450004,-500.0,8.219e-05,2]
[420641648,1776401450014,-1611.87,8.219e-05,2]
[420641649,1776401450024,-4061.62,8.219e-05,2]
[420641650,1776401450034,-500.000001,8.219e-05,2]
[420641651,1776401450043,-505.96210962,8.219e-05,2]
[420641652,1776401450052,-500.0,8.219e-05,2]
[420641653,1776401450062,-553.7,8.219e-05,2]
[420641654,1776401450071,-500.29387348,8.219e-05,2]
[420641655,1776401450080,-16881.46,8.219e-05,2]
[420641656,1776401450091,-3111.36,8.219e-05,2]
[420641657,1776401450100,-597.81,8.219e-05,2]
[420641658,1776401450110,-500.0,8.219e-05,2]
[420641659,1776401450119,-500.0,8.219e-05,2]
[420641660,1776401450129,-500.0,8.219e-05,2]
[420641661,1776401450139,-1337.64,8.219e-05,2]
[420641662,1776401450149,-500.0,8.219e-05,2]
[420641663,1776401450159,-1331.23,8.219e-05,2]
[420641664,1776401450168,-500.0,8.219e-05,2]
[420641665,1776401450178,-5250.95,8.219e-05,2]
[420641666,1776401450188,-570.67,8.219e-05,2]
[420641667,1776401450197,-500.0,8.219e-05,2]
[420641668,1776401450207,-500.0,8.219e-05,2]
[420641669,1776401450217,-500.0,8.219e-05,2]
[420641670,1776401450226,-500.0,8.219e-05,2]
[420641671,1776401450236,-500.0,8.219e-05,2]
[420641672,1776401450246,-1978.96,8.219e-05,2]
[420641673,1776401450255,-500.0,8.219e-05,2]
[420641674,1776401450264,-500.53277925,8.219e-05,2]
[420641675,1776401450274,-500.0,8.219e-05,2]
[420641676,1776401450283,-500.0,8.219e-05,2]
[420641677,1776401450293,-11414.19,8.219e-05,2]
[420641678,1776401450303,-500.0,8.219e-05,2]
[420641679,1776401450313,-500.0,8.219e-05,2]
[420641680,1776401450322,-500.0,8.219e-05,2]
[420641681,1776401450331,-500.0,8.219e-05,2]
[420641682,1776401450340,-500.0,8.219e-05,2]
[420641683,1776401450350,-500.0,8.219e-05,2]
[420641684,1776401450360,-500.0,8.219e-05,2]
[420641685,1776401450370,-412.23458596,8.219e-05,2]
[420641686,1776401450380,-500.0,8.219e-05,2]
[420641687,1776401450390,-721.49,8.219e-05,2]
[420641688,1776401450399,-500.0,8.219e-05,2]
[420641689,1776401450409,-500.0,8.219e-05,2]
[420641690,1776401450418,-500.0,8.219e-05,2]
[420641691,1776401450429,-500.0,8.219e-05,2]
[420641692,1776401450438,-500.0,8.219e-05,2]
[420641693,1776401450448,-4224.12,8.219e-05,2]
[420641694,1776401450457,-500.0,8.219e-05,2]
[420641695,1776401450467,-500.0,8.219e-05,2]
[420641696,1776401450478,-500.0,8.219e-05,2]
[420641697,1776401450487,-580.13,8.219e-05,2]
[420641698,1776401450497,-500.0,8.219e-05,2]
[420641699,1776401450506,-500.0,8.219e-05,2]
[420641700,1776401450515,-645.27,8.219e-05,2]
[420641701,1776401450525,-3095.9,8.219e-05,2]
[420641702,1776401450534,-500.0,8.219e-05,2]
[420641703,1776401450543,-500.0,8.219e-05,2]
[420641704,1776401450552,-500.0,8.219e-05,2]
[420641705,1776401450562,-500.0,8.219e-05,2]
[420641706,1776401450572,-500.0,8.219e-05,2]
[420641707,1776401450582,-744.64,8.219e-05,2]
[420641708,1776401450591,-500.0,8.219e-05,2]
[420641709,1776401450600,-500.0,8.219e-05,2]
[420641710,1776401450610,-500.0,8.219e-05,2]
[420641711,1776401450619,-700.34,8.219e-05,2]
[420641712,1776401450628,-500.0,8.219e-05,2]
[420641713,1776401450637,-500.0,8.219e-05,2]
[420641714,1776401450646,-500.0,8.219e-05,2]
[420641715,1776401450656,-2873.24,8.219e-05,2]
[420641716,1776401450666,-500.0,8.219e-05,2]
[420641717,1776401450675,-500.0,8.219e-05,2]
[420641718,1776401450684,-500.0,8.219e-05,2]
[420641719,1776401450694,-905.27,8.219e-05,2]
[420641720,1776401450704,-3964.11,8.219e-05,2]
[420641721,1776401450714,-500.0,8.219e-05,2]
[420641722,1776401450723,-500.0,8.219e-05,2]
[420641723,1776401450733,-513.45677622,8.219e-05,2]
[420641724,1776401450742,-513.45677622,8.219e-05,2]
[420641725,1776401450752,-513.45677622,8.219e-05,2]
[420641726,1776401450764,-500.0,8.219e-05,2]
[420641727,1776401450773,-4456.76,8.219e-05,2]
[420641728,1776401450783,-500.0,8.219e-05,2]
[420641729,1776401450793,-500.0,8.219e-05,2]
[420641730,1776401450802,-500.0,8.219e-05,2]
[420641731,1776401450812,-858.08,8.219e-05,2]
[420641732,1776401450821,-500.0,8.219e-05,2]
[420641733,1776401450831,-500.0,8.219e-05,2]
[420641734,1776401450840,-1123.28,8.219e-05,2]
[420641735,1776401450850,-500.0,8.219e-05,2]
[420641736,1776401450859,-1846.29,8.219e-05,2]
[420641737,1776401450868,-500.0,8.219e-05,2]
[420641738,1776401450877,-500.0,8.219e-05,2]
[420641739,1776401450887,-1799.67,8.219e-05,2]
[420641740,1776401450896,-500.0,8.219e-05,2]
[420641741,1776401450905,-500.0,8.219e-05,2]
[420641742,1776401450915,-169.06159456,8.219e-05,2]
[420641743,1776401450924,-958.27,8.219e-05,2]
[420641744,1776401450933,-151.0,8.219e-05,2]
[420641745,1776401450942,-151.0,8.219e-05,2]
[420641746,1776401450951,-151.960621,8.219e-05,2]
[420641747,1776401450961,-238.55,8.221e-05,7]
[420641748,1776401450970,-311.91373393,8.234e-05,2]
[420641749,1776401450980,-10180.69991915,8.247e-05,2]
[420641750,1776401450990,-152.0,8.263e-05,7]
[420641751,1776401450999,-151.0,8.265e-05,2]
[420641752,1776401451009,-314.0,8.275e-05,2]
[420641753,1776401451018,-626.0,8.275e-05,2]
[420641754,1776401451028,-173.8711502,8.28e-05,2]
[420641755,1776401451037,-325.2695583,8.28e-05,2]
[420641756,1776401451046,-200.0,8.3e-05,2]
[420641757,1776401451056,-1059019.79987257,8.33e-05,2]
[420641758,1776401451065,-185.144325,8.456e-05,2]
[420641759,1776401451075,-1833.4623,8.493e-05,2]
[420641760,1776401451084,-500.0,8.493e-05,2]
[420641761,1776401451093,-500.0,8.493e-05,2]
[420641762,1776401451103,-500.0,8.493e-05,2]
[420641763,1776401451112,-500.0,8.493e-05,2]
[420641764,1776401451121,-428.41174297,8.493e-05,2]
[420641765,1776401451131,-412.21122572,8.493e-05,2]
[420641766,1776401451140,-500.0,8.493e-05,2]
[420641767,1776401451150,-536.75,8.493e-05,2]
[420641768,1776401451160,-500.0,8.493e-05,2]
[420641769,1776401451170,-500.0,8.493e-05,2]
[420641770,1776401451180,-500.0,8.493e-05,2]
[420641771,1776401451190,-500.0,8.493e-05,2]
[420641772,1776401451199,-154.2,8.493e-05,2]
[420641773,1776401451209,-714.74,8.493e-05,2]
[420641774,1776401451219,-500.0,8.493e-05,2]
[420641775,1776401451228,-466.10671764,8.493e-05,2]
[420641776,1776401451238,-500.0,8.493e-05,2]
[420641777,1776401451247,-500.0,8.493e-05,2]
[420641778,1776401451256,-500.0,8.493e-05,2]
[420641779,1776401451267,-500.0,8.493e-05,2]
[420641780,1776401451276,-514.06,8.493e-05,2]
[420641781,1776401451285,-790.56,8.493e-05,2]
[420641782,1776401451294,-290.35666211,8.493e-05,2]
[420641783,1776401451304,-500.0,8.493e-05,2]
[420641784,1776401451312,-1577.48,8.493e-05,2]
[420641785,1776401451321,-500.0,8.493e-05,2]
[420641786,1776401451331,-500.0,8.493e-05,2]
[420641787,1776401451340,-500.0,8.493e-05,2]
[420641788,1776401451349,-500.0,8.493e-05,2]
[420641789,1776401451359,-500.0,8.493e-05,2]
[420641790,1776401451409,-981.48,8.493e-05,2]
[420641791,1776401451418,-420.1183933,8.493e-05,2]
[420641792,1776401451427,-524.88,8.493e-05,2]
[420641793,1776401451436,-500.0,8.493e-05,2]
[420641794,1776401451446,-624.04,8.493e-05,2]
[420641795,1776401451455,-500.0,8.493e-05,2]
[420641796,1776401451464,-500.0,8.493e-05,2]
[420641797,1776401451474,-1139.79,8.493e-05,2]
[420641798,1776401451483,-500.0,8.493e-05,2]
[420641799,1776401451492,-500.0,8.493e-05,2]
[420641800,1776401451501,-1408.35,8.493e-05,2]
[420641801,1776401451511,-500.0,8.493e-05,2]
[420641802,1776401451521,-319.87488436,8.493e-05,2]
[420641803,1776401451531,-500.0,8.493e-05,2]
[420641804,1776401451540,-433.37049827,8.493e-05,2]
[420641805,1776401451549,-500.0,8.493e-05,2]
[420641806,1776401451559,-500.0,8.493e-05,2]
[420641807,1776401451568,-2125.39,8.493e-05,2]
[420641808,1776401451577,-2446.73,8.493e-05,2]
[420641809,1776401451587,-794.09,8.493e-05,2]
[420641810,1776401451596,-500.0,8.493e-05,2]
[420641811,1776401451605,-1373.22,8.493e-05,2]
[420641812,1776401451615,-500.0,8.493e-05,2]
[420641813,1776401451624,-644.82,8.493e-05,2]
[420641814,1776401451633,-500.0,8.493e-05,2]
[420641815,1776401451642,-2132.91,8.493e-05,2]
[420641816,1776401451651,-1234.04,8.493e-05,2]
[420641817,1776401451660,-500.0,8.493e-05,2]
[420641818,1776401451670,-625.19583935,8.493e-05,2]
[420641819,1776401451680,-500.0,8.493e-05,2]
[420641820,1776401451689,-500.0,8.493e-05,2]
[420641821,1776401451698,-500.0,8.493e-05,2]
[420641822,1776401451708,-500.0,8.493e-05,2]
[420641823,1776401451718,-230.28348342,8.493e-05,2]
[420641824,1776401451727,-654.49,8.493e-05,2]
[420641825,1776401451736,-528.5,8.493e-05,2]
[420641826,1776401451746,-500.0,8.493e-05,2]
[420641827,1776401451755,-303.23304046,8.493e-05,2]